Workbook

Sheet MLC-8540-MMSC1 REV 1
A1: ITEM NO | F1: QUANTITY | G1: RATE | H1: AMOUNT
C3: SECTION ONE
C5: BILL NO. 1
C7: PRELIMINARIES
C9: NOTES TO PRELIMINARIES
C11: 1.0 These Preliminaries comprise the following: 1.01 Part A - The JBCC Principal Building Agreement Edition 6.2 May 2018 as amended by these bills of quantities 1.02 Part B - The JBCC General Preliminaries Edition 6.2 May 2018 as amended by these bills of quantities 1.03 Part C - Additional Preliminaries to meet the particular circumstances of this project
C13: 2.0 Where references are made to clauses in any of the above sections, they will be identified by the prefix A, B or C followed by the clause number.
C15: 3.0 Tenderers are referred to the above mentioned documents for the full intent and meaning of each clause thereof. These clauses are hereinafter referred to by clause number and heading only. Where standard clauses or alternatives are not applicable to this contract, such modifications / corrections or additions as are necessary, are given as far as possible under each relevant clause heading.
C17: 4.0 No claim whatsoever shall be entertained in respect of errors or omissions in pricing due to brevity of descriptions of items in these bills of quantities which are fully described when read in conjunction with the relevant clauses of the said Preliminaries and Preambles.
C19: 5.0 The tenderer shall allow opposite each of the clauses whatever costs and charges he may consider necessary for the carrying out, complying with and due observance of the provisions, conditions and requirements set out herein. Only priced items will be considered in respect of any adjustment of this section. Any items left unpriced shall be deemed to be covered against other items throughout these bills of quantities and no claim for any extras arising out of the tenderer's omission to price any item will be entertained.
C21: 6.0 Where modifications or amendments as described are made, such modifications and/or amendments shall supersede any conflicting provision in the relevant clauses of the Principal Building Agreement and the tenderer shall make due allowance for whatever costs and charges he may consider necessary for the carrying out and observance of the provisions of the clauses as modified and/or amended.
C23: 7.0 Any item not applicable to this contract is marked N/A.
C25: 8.0 Should the contractor select Option A in terms of clause D4.0 in the Contract Data for the purpose of adjustment of the preliminaries, the amount entered into the amount column in these preliminaries is to be divided into one or more of the three categories provided namely Fixed (F), Value Related (V) and Time Related (T).
C27: PART A - PRINCIPAL BUILDING AGREEMENT
C29: INTERPRETATION
A31: 1 | C31: CLAUSE 1.0 DEFINITIONS AND INTERPRETATIONS | E31: Item | F31: 1.00 | H31: =ROUND(F31*G31,2) -> 0.00
C33: Clause 1.1 The following definition is amended: The definition of practical completion is amplified by the addition of the following after the words "for the intended purpose" "and without derogating from the generality of the foregoing, the works and sections thereof shall not be considered to be complete or be capable of being effectively used for the intended purpose, and shall accordingly not be considered to have reached a state of practical completion, if any of the specific requirements as recorded in the Contract Data have not been met"
C35: Clause 1.2 is amended by the addition of the following clauses: 1.2.6 "No waiver or relaxation of any of the provisions or terms of this agreement (or any agreement or other document issued or executed pursuant to or in terms of this agreement) shall operate as an estoppel against a party in respect of any of its rights in terms of this agreement. No failure by a party to enforce any provision of this agreement shall constitute a waiver of such provisions or affect in any way such party's rights to require the performance of such provision at any time in the future, nor shall a waiver of a subsequent breach nullify the effectiveness of the provision itself"
C37: 1.2.7 "If the contractor constitutes a joint venture consortium or other unincorporated grouping of two or more persons:1.2.8.1 these persons are deemed to be jointly and severally liable to the employer for the performance of this agreement;1.2.8.2 these persons shall notify the employer of their leader who has authority to bind the contractor and each of these persons; and 1.2.8.3 the contractor shall not alter its composition or legal status without the prior written consent of the employer"
A39: 2 | C39: CLAUSE 2.0 LAWS, REGULATIONS AND NOTICES | E39: Item | F39: 1.00 | H39: =ROUND(F39*G39,2) -> 0.00
C41: Clause 2.0 is amended by the addition of the following clauses:2.5 Health and Safety Specification - the contractor shall comply with the requirements of the Occupational Health & Safety Act (85/1993) as amended by Occupational Health & Safety Amendment Act (181/1993) and the July 2014 Construction Regulations (refer Clause 8 Section One hereof). The employer will appoint an independent safety officer who will, in consultation with the contractor, draw up and agree the construction phase health and safety plan / specification. This health and safety specification will form an integral part of the principal contract document (making up Annexure "M") and will be copied to all subcontractors for inclusion, as modified, within their respective scope of works2.6 The contractor acknowledges that the undertaking given in this clause constitutes an agreement in terms of Section 37/20 of the Occupational Health & Safety Act and its regulations, whereby all responsibility for health and safety matters relating to the services performed under this agreement shall be the obligation of the service provider. The contractor shall comply with all the laws and regulations which may be relevant to the services performed under this agreement, it being recorded that the presence of the contractor’s employees, representatives, authorised subcontractors, machinery, plant equipment and vehicles at the employer’s premises shall always be subject to the provisions of the OHS Act and of all other relevant legislation, codes of practice, directives, health and safety rules and security measures and will adhere to and obey all directives and instructions given by the employer in this regard. 2.7 Environmental Impact Assessment Regulations - the contractor shall comply with Regulations 1182 and 1183, 1997.2.8 Noise Control Regulations - the contractor shall comply with Regulations 19992.9 The employer reserves the right to pay direct (i.e. not through the contractor) for all or any permanent connections to local or other authority services, for which provisional amounts have been included within the selected subcontract bill / section hereof. In the event of the employer paying direct for these charges, the contractor will not be entitled to a ten percent (10%) mark-up in terms of Clause A26.4. All such provisional amounts included in the contract sum will be omitted.2.10 The employer and their agents, will not engage directly or indirectly with any Business Forums, local labour groups or any other similar entities (hereafter collectively referred to as Business Forums). Any discussions and / or negotiations with such Business Forums shall be conducted between the contractor and the Business Forum at their own discretion. The contractor is to ensure that the site and the access to the site remains a safe working environment for themselves, their subcontractors, the employer and their agents. The contractor shall appoint a Community Liaison Officer (CLO) to assist with any and all negotiations with the Business Forums as is appropriate. The contractor is to submit a copy of the appointment letter for the CLO to the Principal Agent prior to the commencement of any discussions and / or negotiations with the Business Form. Tenderers are advised that notwithstanding any provisions to the contrary contained in the contract, pending the circumstances an extension of time without cost may be granted at the Principal Agent'sdiscretion in the event that a Business Forum prevents, for any reason, normal construction activities from being carried out on site. No claims will be entertained due to variances in the expected production and / or quality achieved by any subcontractor appointed following engagement with a Business Forum. The contractor will remain responsible for providing adequate supervision of all labour, and will remain responsible for the production and quality of work produced. All costs associated with this clause are to be priced accordingly and included in their preliminaries.
A43: 3 | C43: CLAUSE 3.0 OFFER AND ACCEPTANCE | E43: Item | F43: 1.00 | H43: =ROUND(F43*G43,2) -> 0.00
A45: 4 | C45: CLAUSE 4.0 CESSION AND ASSIGNMENT | E45: Item | F45: 1.00 | H45: =ROUND(F45*G45,2) -> 0.00
A47: 5 | C47: CLAUSE 5.0 DOCUMENTS | E47: Item | F47: 1.00 | H47: =ROUND(F47*G47,2) -> 0.00
C49: Clause 5.0 is amended as follows : i) Clause 5.6 is amended by the addition of the following at the end thereof: "Outside of this, the contractor shall be deemed to have made appropriate allowances for plotting and printing of construction information for itself and for issuing to subcontractors" ii) The addition of Clause 5.7 "All contract drawings for this project will be issued electronically and the contractor shall be deemed to have received such contract drawings on the date that such contract drawings have been dispatched electronically"
A51: 6 | C51: CLAUSE 6.0 EMPLOYER'S AGENTS | E51: Item | F51: 1.00 | H51: =ROUND(F51*G51,2) -> 0.00
C53: Clause 6.5 is amended by deleting the last sentence thereof. The contractor shall have no opportunity to reasonably object on the employers appointment of another principal agent.
A55: 7 | C55: CLAUSE 7.0 DESIGN RESPONSIBILITY | E55: Item | F55: 1.00 | H55: =ROUND(F55*G55,2) -> 0.00
C57: Clause 7.0 is amended as follows : i) Clause 7.1 is amended by the addition of the following : Notwithstanding the provisions of Clause 7.1 hereof, where the contractor undertakes the design responsibility of any aspect of the works, he shall, in accordance with Annexure "H" hereof, indemnify and hold free the employer and his agents from responsibility for any claim or proceeding whatsoever due to fault in the design, detailing, calculations, etc., to the extent undertaken by the contractor. In such instance and with regard to those aspects of work as listed on Annexure "H", the provisions of Clause 7.0 shall not apply. In respect of design responsibility undertaken by any nominated or selected subcontractor, such subcontractor shall similarly, in accordance with Annexure "I" hereof, indemnify and hold free the employer, his agents and the contractor from responsibility for any claim or proceeding whatsoever due to fault in the design, detailing, calculations, etc., to the extent undertaken by the subcontractor. ii) The addition of Clause 7.4 "If the contractor fails to obtain the necessary design warranties and/or indemnities from the subcontractors, the design responsibility shall be deemed to devolve upon the contractor"
C59: INSURANCE AND SECURITY
A61: 8 | C61: CLAUSE 8.0 WORKS RISK | E61: Item | F61: 1.00 | H61: =ROUND(F61*G61,2) -> 0.00
A63: 9 | C63: CLAUSE 9.0 INDEMNITIES | E63: Item | F63: 1.00 | H63: =ROUND(F63*G63,2) -> 0.00
C65: Clause 9.2.7 is amended as follows: Following the words principal agent, the following is to be added: The Contractor shall act with due care or diligence in accordance with the contractual obligations and shall under no circumstances be relieved or indemnified in any manner whatsoever should the contractor have acted negligently or without the required skill, due care and diligence.
A67: 10 | C67: CLAUSE 10.0 INSURANCES | E67: Item | F67: 1.00 | H67: =ROUND(F67*G67,2) -> 0.00
C69: Clause 10.0 is amended by the addition of the following: 10.12 The contractor shall effect, as a minimum, the following insurances: a) Insurance to comply with the provisions of the Compensation for Occupational Injuries and Diseases Act 1993. b) Employers Liability Insurance for no less than R10 million ) All risks cover on all construction plant and allied equipment including site huts and temporary accommodation including plant and machinery hired, leased or loaned. The Employers interests are to be noted. Furthermore the contractor shall effect and maintain for the duration of the contract Motor Vehicle Liability Insurance company: d) Insurance in accordance with the Multilateral Motor Vehicle Accident fund No 93 of 1989 as amended. e) Balance of Third Party Motor Risks including passenger Liability 10.13 Where called upon to do so, the party/ies responsible for effecting the various insurances, shall complete the relevant sections of Annexure "K" - "Declaration Of Insurance" attached
A71: 11 | C71: CLAUSE 11.0 SECURITIES | E71: Item | F71: 1.00 | H71: =ROUND(F71*G71,2) -> 0.00
C73: EXECUTION
A75: 12 | C75: CLAUSE 12.0 OBLIGATION OF THE PARTIES | E75: Item | F75: 1.00 | H75: =ROUND(F75*G75,2) -> 0.00
C77: Clause 12.0 is amended as follows:
C79: i) Clause 12.2.1 shall be amended by the addition of the following: In addition, the contractor shall acquaint himself with any limitations or restrictions on working space, any restrictions imposed by existing buildings adjoining the site, any restrictions imposed by any authorities and any limitations on the availability of water, power and sewerage facilities. Access to the works shall be strictly confined to that permitted by the principal agent. The contractor shall be solely responsible for maintaining such access and reinstating same upon completion. No claim whatsoever shall be entertained due to the access not being trafficable due to weather conditions and the like. No claims for extras arising from the contractor having failed to comply with this clause will be entertained.
C81: ii) Clause 12.2.2 shall be amended by replacing the phrase "…fifteen (15) working days…" in the first sentence with the phrase "…seven (7) working days…".
C83: iii) Clause 12.2.6 is deleted in its entirety and replaced with the following:- Immediately on award of the contract and prior to commencement on site, the contractor, in conjunction with the principal agent, shall agree the working programme covering the first month of the construction period. During the course of the first month of the construction period, the contractor shall prepare and draw up for the principal agent's approval, a working programme for the balance of the works in accordance with the dates given herein, for possession, sectional completion and practical completion and shall be in sufficient details to enable the principal agent to monitor the progress of the works. The principal agent shall have the right to modify such programme to accommodate changes necessary, in his opinion, for co-ordinating the project as a whole. Any cost implications relating to such modification, shall be dealt with in accordance with the provisions of the agreement. The contractor shall be responsible at all times for maintaining the accuracy, validity and reasonableness of the programme, and the implementation thereof. The programme shall be compiled based on the critical path method of programming and the critical activities are to be clearly highlighted. Documentation will not be available in complete detail at the commencement stage. However the contractor, in consultation with the principal agent, shall plan the works on provisional information, to an agreed level of detail relating to the level of detailed information available and with sufficient scope to include future detail, without disrupting the basic logic as initially agreed. The quantities contained in this document are provisional and shall be utilized as a guide only for the drawing up of the programme. Where assumptions are made in regard to programming aspects, such assumptions shall be agreed by the contractor and the principal agent, and suitably recorded in the programme. Should circumstances change to the extent where the contractor is of the opinion that changes to the programme are required, then the contractor shall submit a written request to the principal agent for such changes, clearly identifying the reasons for requiring such change. The contractor and principal agent shall thereafter agree such changes, if any. Should the principal agent be of the opinion that the programme requires revisions, and notwithstanding the fact that a request for such revision has not been received from the contractor, the principal agent shall be entitled to instruct the contractor to revise the programme accordingly, unless the contractor can submit reasonable justification for not doing so. Any acceleration and/or special measures sanctioned by the principal agent together with associated effects shall be incorporated in a revision to the programme. The contractor and the principal agent shall, at regular intervals not exceeding two weeks, agree the state of progress of the works relative to the latest agreed revision of the programme. Such agreement shall include the recording of actual commencement and completion dates for each activity and shall constitute the official record of the progress at such point in time. In addition to and based on the programme systems and format dictated above, the contractor shall devise detailed working programmes. These shall be drawn on a regular basis (at least monthly), to the satisfaction of the principal agent. Such working programmes shall at all times relate to the constraints of the current programme.
C85: iv) Clause 12.2.10 is deleted in its entirety.
C87: v) Clause 12.2.13 is amended by the addition of the following: The names and CV's of the contractor's proposed management team(Including but not limited to Contracts manager, site agent, foreman, MEPDF Coordinator etc shall be submitted to the principal agent prior to commencement on site and, after the principal agent's agreement on the composition and competence thereof has been obtained, no changes shall be made nor shall any member of the said team be removed from the project while remaining in the employ of the contractor, without the principal agent's prior written approval.
C89: vi) Clause 12.2.18 is amended by the addition of the following: The contractor shall erect, maintain, alter as necessary and remove at completion:1.0 Offices accommodation for meetings held on site as per the following requirements:Office to be air conditionedScanner 2.0 The following equipment / information is to be provided and maintained for use of the professional team:A3 lever arch file with the latest full set of Architectural, civil, structural, electrical, mechanical and fire drawings.3.0 One main notice boards of an approved design as instructed by the principal agent.4.0 The contractor shall have on site available additional hard hats, reflective vests (PPE equipment) as necessary in the event the Clients visitors should visit site.
C91: vii) The addition of the following clauses 12.2.22 "The contractor shall designate a competent person to administer, control and regularly update subcontractor's delivery schedules, long lead items, shop drawing schedules, material / technical submittals, samples submittals and document submittals. This person shall be based full time on site for the construction period" 12.2.23 "The contractor shall have a suitably qualified and experienced mechanical, electrical, plumbing and fire services (MEPDF) coordinator as part of the contractor's site management team. This coordinator shall be available once major mechanical, electrical, plumbing and fire services (MEPDF) subcontractors have been appointed and must be based full time on site from commencement of first fix installation inside the buildings up to and including the date of practical completion"
A93: 13 | C93: CLAUSE 13.0 SETTING OUT | E93: Item | F93: 1.00 | H93: =ROUND(F93*G93,2) -> 0.00
C95: Clause 13.2 is amended by the addition of the following clauses: 13.2.5 "The contractor shall notify the principal agent if any encroachment of adjoining foundation, buildings, structures, pavements, boundaries, services, etc exist in order that the necessary arrangements may be made for the rectification of any such encroachments" 13.2.6 "The contractor shall continuously perform tolerance control checks throughout the construction period and report on these at regular intervals to the principal agent in a format approved by the principal agent" 13.2.7 "Should the contractor fail to comply with this requirement to the satisfaction of the principal agent, progressively as the works is constructed, the employer shall be entitled to commission other parties to do so on the contractor's behalf and at the contractor's expense. The contractor shall provide general attendance and all reasonable assistance to such parties"
A97: 14 | C97: CLAUSE 14.0 NOMINATED SUBCONTRACTORS | E97: Item | F97: 1.00 | H97: =ROUND(F97*G97,2) -> 0.00
A99: 15 | C99: CLAUSE 15.0 SELECTED SUBCONTRACTORS | E99: Item | F99: 1.00 | H99: =ROUND(F99*G99,2) -> 0.00
A101: 16 | C101: CLAUSE 16.0 DIRECT CONTRACTORS | E101: Item | F101: 1.00 | H101: =ROUND(F101*G101,2) -> 0.00
C103: Clause 16.0 is amended as follows :
C105: (i) Clause 16.1.1 is amended by adding the words "...employer's employees or tenants..." after the word "...direct contractor..." in the first sentence, and by the addition of the following wording: In addition, the employer shall have the right to send his own employees or direct contractors on to the works for the purpose of installing tenant installations and requirements and any other special installations and systems. The contractor is to allow against the relevant items as described in this Clause, for any costs, as no additional claims will be entertained due to the presence on the works of such direct contractors, employers, employees or tenants.
C107: (ii) Clause 16.1.2 is amended by the addition of the following wording : The contractor shall not be entitled to any percentage profit or discount on the value of any work executed by direct contractors but shall nevertheless allow these direct contractors and the employer's employees to have access to the works, allocate reasonable space in the building for the storage of their materials, tools and equipment, and co-ordinate via the principal agent, the work of such direct contractors as necessary, all to the satisfaction of the principal agent. The contractor shall allow the direct contractors, etc., to use free of charge, the latrine accommodation and water and power supply on the site, and shall not in any way hinder or prevent the execution of their work.
C109: (iii) The addition of the following Clause 16.1.4: The contractor is advised that the following works may be carried out by the employer and / or his direct contractors and/or the employer's employees whether contained in this agreement or not, and/or tenants and the value of such work is not included in the principal building agreement:Furniture Curtaining PABX systemRadio and television installation, slot bases, etc.Kitchen and catering equipment Computer installations, data cabling, etcArtwork, paint murals, etc. Burglar alarm, security and access control installationsPublic address installationSignage, graphics and the like in public areasStandby generatorsRefrigeration equipment and refrigeration pipingSpecialist lighting other than that provided by the electrical subcontractorClosed circuit television installationEnergy management systemsInstallations carried out by the employer in the normal course of his businessLandscaping and irrigationLPG gasMATV systemUPSPoint of sale equipment and installationPV installation The contractor should allow for early occupation for the installation of these facilities, specifically computer rooms(s), to enable the direct contractors to finish their first and second fix items on or before practical / sectional completion of the works. A detailed schedule indicating the anticipated early occupation dates for the various items shall be agreed between the contractor and the principal agent.
C111: iv) The addition of the following Clauses: 16.1.5 "Designate an area for the direct contractor to establish a temporary office and workshop and storage of equipment and materials" 16.1.6 "Allow the use of personnel welfare facilities, where provided" 16.1.7 "Provide water, lighting and single phase electric power to a position within 50m of the place where the direct contract work is to be carried out, other than fuel or power for commissioning of any installation" 16.1.8 "Permit the direct contractor to use erected scaffolding, hoisting facilities, etc provided by the contractor, in common with others having the like right while it remains erected on the site"
A113: 17 | C113: CLAUSE 17.0 CONTRACT INSTRUCTIONS | E113: Item | F113: 1.00 | H113: =ROUND(F113*G113,2) -> 0.00
C115: Clause 17.0 is amended by the addition of the following clauses:17.1.21 Acceleration 17.6 Contract Instructions issued by the principal agent or delegated agent. The contractor is required to scan and email all contract Instructions to the Principal agent, Architect and Quantity surveyor, and/or all services consultants where applicable within 24 hours of receipt of said instruction, if this procedure is not strictly adhered to, payment of such instruction will not be certified accordingly. The contractor shall record all instructions and report same in weekly Contract Instruction tracking schedules issued to the principal agent. The principal agent shall determine the Contract Instruction format and only contract instructions issued on the agreed format shall be recognised.
C117: COMPLETION
A119: 18 | C119: CLAUSE 18.0 INTERIM COMPLETION | E119: Item | F119: 1.00 | H119: =ROUND(F119*G119,2) -> 0.00
A121: 19 | C121: CLAUSE 19.0 PRACTICAL COMPLETION | E121: Item | F121: 1.00 | H121: =ROUND(F121*G121,2) -> 0.00
C123: Clause 19.3 is amended by the addition of the following Clause: 19.3.5 "Notwithstanding the provisions of Clauses 19.3.1 and 19.3.2 any defects occurring after the issue of the list for practical completion requiring remedial work that will in the opinion of the principal agent cause disruption, will cause the issue of the certificate of practical completion to be withheld until such defects have been rectified to the satisfaction of the principal agent"
C125: Clause 19.6 is deleted and replaced by the following Clause: 19.6 "If the contractor does not achieve practical completion by the applicable date for practical completion, then the employer may with the prior written agreement of the contractor (which shall not be unreasonably delayed or withheld), be entitled to take possession, in its entirety or parts thereof of the works and the site. The employer shall occupy and operate the building as if practical completion has been achieved, (but practical completion shall not be deemed to have taken place and the applicable certificate of practical completion shall not be issued) Such possession, occupation and operation by the employer shall not in any way whatsoever diminish or reduce the contractor's responsibility in terms of this agreement which in this event shall continue to be applied as if practical completion had not been achieved save that the penalty as contained in the contract data shall be reduced. The reduction in penalty will be calculated based on the revenue generating area being taken prior to the achievement of practical completion expressed as a percentage of the total revenue producing area.(Definition of revenue producing area is to be in strict compliance with SAPOA).The contractor shall complete the works in a manner which will least interfere with the employer's occupation and operation of the building, including working after hours, if necessary"
A127: 20 | C127: CLAUSE 20.0 COMPLETION IN SECTIONS | E127: Item | F127: 1.00 | H127: =ROUND(F127*G127,2) -> 0.00
A129: 21 | C129: CLAUSE 21.0 DEFECTS LIABILITY AND FINAL COMPLETION | E129: Item | F129: 1.00 | H129: =ROUND(F129*G129,2) -> 0.00
C131: Clause 21.0 is amended by the addition of the following clauses: 21.6.3 The contractor shall complete the items on the list for completion and list for final completion by the expiry of the defects liability period, ninety (90) calendar days from the date of practical completion achievement. Should the contractor not complete the list for completion or list for final completion within the time frame 90 days from Practical Completion), a penalty of five thousand rand (R 5 000 ex Vat) per calender day shall be applied until achievement of final completion and issuance of the final completion certificate. The contractor shall be responsible to complete all items on the list for completion and list for final completion, failing which, the penalty shall be applied in full and shall remain in full force and effect until achievement and issuance of the final completion certificate.
C133: 21.13 The certificate of final completion will not be issued until the as built drawings, guarantees and maintenance instructions/manuals in terms of Clause C5.1 hereof has been lodged and approved to the satisfaction of the principal agent and client.
A135: 22 | C135: CLAUSE 22.0 LATENT DEFECTS LIABILITY PERIOD | E135: Item | F135: 1.00 | H135: =ROUND(F135*G135,2) -> 0.00
A137: 23 | C137: CLAUSE 23.0 REVISION OF THE DATE FOR PRACTICAL COMPLETION | E137: Item | F137: 1.00 | H137: =ROUND(F137*G137,2) -> 0.00
C139: Clause 23.0 is amended as follows : i) Clause 23.2.12 is deleted in its entirety.
C141: ii) Clause 23.1.1 shall be amended by the addition of the following: Revision to the date of practical completion in respect of adverse weather conditions will only be considered by the principal agent, to the extent that the actual recorded adverse weather on site affected work on a critical activity during the course of the contract.
C143: ii) Clause 23.4.2 Twenty (20) working days shall be replaced with ten (10) working days.
C145: iii) Clause 23.5 Forty (40) working days shall be replaced with Twenty (20) working days.
C147: iv) The addition of the following clauses23.9 "Revision to the date for practical completion shall only be considered when work on the critical path of the approved programme for the works is delayed"23.10 "Notwithstanding anything to the contrary, the contractor shall not be entitled to a revision to the date for practical completion for delays arising from Municipal or other interruptions in energy supply to the site"23.11 "Irrespective of whether or not the principal agent rules that the contractor is entitled to a revision of the date for practical completion, the principal agent shall nevertheless at any time, be entitled to issue a contract instruction to accelerate the progress of the remaining work, to ensure that the works are completed by the date for practical completionUpon receipt of such instruction, the contractor shall take necessary steps to ensure that the works are completed timeously, including the provision by him of additional resources, plant, manpower, etc and the working of overtime or additional overtime beyond that contemplated at the time of tender (at all times adhering to the regulations and requirements of all authorities) and by all other adequate and proper means and methods. The contractor shall prove that such steps are being taken if called upon to do soThe contractor's entitlement to compensation arising out of or in respect of any revision to the date for practical completion that may have been granted by the principal agent, or alternatively, where the principal agent has instructed the contractor to accelerate shall be adjudicated strictly in terms of Clause 26.9.4 hereof. 23.12 For the avoidance of doubt, any extension to a Contractual Completion Date shall be reduced to the extent of anyconcurrent delay for which the Contractor is responsible. The burden of proof rests upon the Contractor in order to prove his delay when an event would have occurred on the critical path showing effect to time and completion23.13 The Contractor is to clearly show and indicate in a line item orseveral in the programme, the Terminal Float allowance for the project. The Terminal Float belongs to the project and not either party being the Employer and/or the Contractor. The Contractor will provide a detailed Returnable schedule stipulating the Terminal Float duration provisions and what events are foreseen to be covered under the Terminal Float including Contractor’s Risk, any Project Risk that a reasonable and experienced Contractor can foresee on the project. The Principal Agent and the Contractor will agree on the conditions set out that will reduce the Terminal Float. The Terminal Float will be managed by the Contractor and Principal Agent at agreed intervals on the reporting period stipulated where, any delays to the project that has been incurred during the reporting period will be assessed based on the stipulated conditions of float adjustment as set out in the terms agreed by the principal agent and contractor. This will then be agreed between the Principal Agent and the Contractor that the Terminal Float will be reduced (provided such justification complies) in order to meet the Contractual Completion Date.
A149: 24 | C149: CLAUSE 24.0 PENALTY FOR LATE OR NON-COMPLETION | E149: Item | F149: 1.00 | H149: =ROUND(F149*G149,2) -> 0.00
C151: PAYMENT
A153: 25 | C153: CLAUSE 25.0 PAYMENT | E153: Item | F153: 1.00 | H153: =ROUND(F153*G153,2) -> 0.00
C155: Clause 25.0 is amended as follows : i) Clause 25.3.2 shall be amended by adding the following: Application by the contractor for the inclusion of materials and goods in an interim payment certificate shall be set out in accordance with Annexures "E" and "F" hereof, separating materials and goods into the work groups as defined in the CPAP (if applicable). ii) Clause 25.10 shall be amended replacing the phrase "…fourteen (14) calendar days…" in the first sentence with the phrase "…twenty one (21) calendar days…".
C157: iii) Clause 25.10 shall further be amended by the addition of the following at the end of this clause: "subject to the contractor giving the employer a tax invoice for the amount due"
C159: iv) Clause 25.13 shall be deleted and replaced with the following clause: Clause 25.13 "The contractor shall pay all subcontractors within seven (7) calendar days of the due date for payment by the employer [CD] and provide proof thereof to the principal agent within five (5) working days of the subcontractor payment due date."
C161: v) The addition of the following clause: 29.19 "Where prices are submitted by the contractor or subcontractor during the progress of the works in respect of contract instructions or in regard to a claim under the terms of the agreement and notwithstanding the fact that such prices may be used in an interim payment certificate, there is to be no presumption of acceptance"
A163: 26 | C163: CLAUSE 26.0 ADJUSTMENT TO THE CONTRACT VALUE AND FINAL ACCOUNT | E163: Item | F163: 1.00 | H163: =ROUND(F163*G163,2) -> 0.00
C165: Clause 26.0 is amended as follows:
C167: i) The addition of Clause 26.2.5 The contractor shall notify the principal agent within (5) working days of any contract instruction for which, in his opinion, reasonable compensation can not be made in terms of Clause 26.2.1 to 26.2.4. Failure to issue notice will mean that the contract value will be adjusted on terms of Clause 26.2.1 to 26.2.4.
C169: ii) Clause 26.4.1 is amended by addition of the following at the end of this clause: "The employer reserves the right to pay direct (i.e. not through the contractor) for all or any permanent connections to local or other authority services, for which provisional amounts have been included within the contract documents. In the event of the employer paying direct for these charges, the contractor will not be entitled to a ten percent (10%) mark-up [26.4.1]. All such provisional amounts included in the contract sum will, as a result, be omitted"
C171: iii) Clause 26.6 shall be amended by replacing the phrase "…forty (40) working days…" in the first sentence with the phrase "…twenty (20) working days…".
C173: iv) Clause 26.9.5 is amended by the addition of the following : In accordance with Clause 3.4.4 of the CPAP, the value of equipment in specialist work (e.g. cooling towers, data controlled supervising equipment, etc.) and imported materials / labour requiring adjustment outside of the CPAP, are to be listed in the tender enquiry document or to be separately listed by the tenderer at the time of tender. For the purposes of such listing, attached Annexure "J" has been provided. The value of such equipment in specialist work shall be stated, together with the required basis of adjustment (e.g. SEIFSA, proven costs, etc.,) and the relevant base indices where applicable.
C175: In respect of imported materials / labour, the following shall be stated :description of materials, plant, equipment, labour, etc.country of originforeign currency amount and the applicable rate of exchange ruling as at the date of submission of the tender the cost, insurance and freight value of the imported materials,etc., expressed in Rands
C177: At the date of acceptance of the tender, the contractor shall further provide a copy of the importation documentation / quotes, substantiating the imported values, currency, etc. as above.
C179: The contractor’s price adjustment requirements as set out above shall be recorded in Annexure "J" hereto, failing which, it shall be deemed that all such equipment in specialist work and imported materials / labour shall be subject to adjustment in terms of the CPAP, if applicable.
C181: v) The addition of the following clause: 26.14 Tenant installations'/users' requirements delayed There is a possibility that certain works related to tenant installations'/users' requirements may have to be delayed and may consequently not be executed prior to practical completion The employer reserves the right to omit such work without compensation to the contractor for loss of profit or any other loss which the contractor may suffer as a result of such omission Should the contractor be instructed to do so he shall execute this work under the conditions pertaining to this agreement on the basis that a separate amount for preliminaries pertinent to this work (if applicable) is agreed to between the contractor and the principal agent and on condition that instruction to proceed with such work is given to him within a period of three (3) calendar months after the date of practical completion of the works
A183: 27 | C183: CLAUSE 27.0 RECOVERY OF EXPENSE AND/OR LOSS | E183: Item | F183: 1.00 | H183: =ROUND(F183*G183,2) -> 0.00
C185: SUSPENSION AND TERMINATION
A187: 28 | C187: CLAUSE 28.0 SUSPENSION BY THE CONTRACTOR | E187: Item | F187: 1.00 | H187: =ROUND(F187*G187,2) -> 0.00
A189: 29 | C189: CLAUSE 29.0 TERMINATION | E189: Item | F189: 1.00 | H189: =ROUND(F189*G189,2) -> 0.00
C191: Clause 29.0 is amended by addition of the following clause : 29.1.4 Provide proof of payment to subcontractors in terms of clause 25.13
C193: DISPUTE RESOLUTION
A195: 30 | C195: CLAUSE 30.0 DISPUTE RESOLUTION | E195: Item | F195: 1.00 | H195: =ROUND(F195*G195,2) -> 0.00
C197: PART B - GENERAL PRELIMINARIES (JBCC EDITION 6.2 MAY 2018)
C199: 1.0 DEFINITIONS AND INTERPRETATION
A201: 1 | C201: CLAUSE 1.1 DEFINITIONS | E201: Item | F201: 1.00 | H201: =ROUND(F201*G201,2) -> 0.00
A203: 2 | C203: CLAUSE 1.2 INTERPRETATION | E203: Item | F203: 1.00 | H203: =ROUND(F203*G203,2) -> 0.00
C205: 2.0 DOCUMENTS
A207: 3 | C207: CLAUSE 2.1 CHECKING OF DOCUMENTS | E207: Item | F207: 1.00 | H207: =ROUND(F207*G207,2) -> 0.00
C209: These provisional bills of quantities contain pages as scheduled in the Index.
C211: No alteration, erasure, amendment, note, deletion, insertion, omission or addition is to be made to this document. Any such alteration, etc., made will not be recognised, but the reading of these bills of quantities, as prepared by the quantity surveyor, will be adhered to.
C213: The tenderer shall check the numbers of the pages of the tender documents and should any be missing or duplicated, or the reproduction is indistinct, or if any doubt exists as to the intent or meaning of any description, or where the contract documents contain any obvious errors, the tenderer shall notify the principal agent forthwith thereof and the principal agent shall promptly give a written directive.
C215: No claim whatsoever shall be entertained in respect of errors in pricing due to brevity of descriptions of items in the bills which are fully described when read in conjunction with the relevant “Standard Preambles.”
C217: The rates contained in the priced bills of quantities shall apply irrespective of the final quantities of the different classes and kinds of work actually executed. No claims for extras, loss of profit, variation of rates or other similar claims will be entertained as a result of any variations whatsoever between the contract sum and the final value of the works.
C219: Budgetary Allowances and Provisional Sums contained herein may be omitted or reduced at the principal agent’s discretion and the contractor shall not be entitled to claim for any loss by way of reduction or omission of any discounts, or percentage relating to Budgetary Allowances or Provisional Sums or any loss of profit related thereto
A221: 4 | C221: CLAUSE 2.2 PROVISIONAL BILLS OF QUANTITIES | E221: Item | F221: 1.00 | H221: =ROUND(F221*G221,2) -> 0.00
C223: The quantities in provisional bills of quantities are an indication of the works to be executed and are subject to remeasurement
A225: 5 | C225: CLAUSE 2.3 AVAILABILITY OF CONSTRUCTION DOCUMENTATION | E225: Item | F225: 1.00 | H225: =ROUND(F225*G225,2) -> 0.00
A227: 6 | C227: CLAUSE 2.4 ORDERING OF MATERIALS AND GOODS | E227: Item | F227: 1.00 | H227: =ROUND(F227*G227,2) -> 0.00
C229: 3.0 PREVIOUS WORK AND ADJOINING PROPERTIES
A231: 7 | C231: CLAUSE 3.1 PREVIOUS WORK - DIMENSIONAL ACCURACY | E231: Item | F231: 1.00 | H231: =ROUND(F231*G231,2) -> 0.00
C233: Clause 3.1 is amended by the addition of the following at the end of the paragraph: "In the event that the contractor fails to notify the principal agent to the contrary, it is deemed that the works is dimensionally accurate"
A235: 8 | C235: CLAUSE 3.2 PREVIOUS WORK - DEFECTS | E235: Item | F235: 1.00 | H235: =ROUND(F235*G235,2) -> 0.00
A237: 9 | C237: CLAUSE 3.3 INSPECTION OF ADJOINING PROPERTIES | E237: Item | F237: 1.00 | H237: =ROUND(F237*G237,2) -> 0.00
C239: 4.0 THE SITE
A241: 10 | C241: CLAUSE 4.1 HANDOVER OF SITE IN STAGES | E241: Item | F241: 1.00 | H241: =ROUND(F241*G241,2) -> 0.00
A243: 11 | C243: CLAUSE 4.2 ENCLOSURE OF THE WORK | E243: Item | F243: 1.00 | H243: =ROUND(F243*G243,2) -> 0.00
A245: 12 | C245: CLAUSE 4.3 GEOTECHNICAL AND OTHER INVESTIGATION | E245: Item | F245: 1.00 | H245: =ROUND(F245*G245,2) -> 0.00
A247: 13 | C247: CLAUSE 4.4 ENCROACHMENTS | E247: Item | F247: 1.00 | H247: =ROUND(F247*G247,2) -> 0.00
A249: 14 | C249: CLAUSE 4.5 EXISTING PREMISES OCCUPIED | E249: Item | F249: 1.00 | H249: =ROUND(F249*G249,2) -> 0.00
A251: 15 | C251: CLAUSE 4.6 SERVICES-KNOWN | E251: Item | F251: 1.00 | H251: =ROUND(F251*G251,2) -> 0.00
C253: 5.0 MANAGEMENT OF CONTRACT
A255: 16 | C255: CLAUSE 5.1 MANAGEMENT OF THE WORKS | E255: Item | F255: 1.00 | H255: =ROUND(F255*G255,2) -> 0.00
C257: Clause 5.1 is amended as follows:
C259: The additional of the clause 5.3.15.1.1 The contractor is responsible for the management of the schedule of information required for the successful completion of the project.
A261: 17 | C261: CLAUSE 5.2 PROGRESS MEETINGS | E261: Item | F261: 1.00 | H261: =ROUND(F261*G261,2) -> 0.00
A263: 18 | C263: CLAUSE 5.3 TECHNICAL MEETINGS | E263: Item | F263: 1.00 | H263: =ROUND(F263*G263,2) -> 0.00
C265: Clause 5.3 is amended as follows:
C267: The additional of the clause 5.3.15.3.1 The contractor shall ensure that a updated photo diary is kept and maintained at all times.
C269: 6.0 SAMPLES, SHOP DRAWINGS AND MANUFACTURER'S INSTRUCTIONS
A271: 19 | C271: CLAUSE 6.1 SAMPLES OF MATERIALS | E271: Item | F271: 1.00 | H271: =ROUND(F271*G271,2) -> 0.00
A273: 20 | C273: CLAUSE 6.2 WORKMANSHIP SAMPLES | E273: Item | F273: 1.00 | H273: =ROUND(F273*G273,2) -> 0.00
A275: 21 | C275: CLAUSE 6.3 SHOP DRAWINGS | E275: Item | F275: 1.00 | H275: =ROUND(F275*G275,2) -> 0.00
C277: Clause 6.3 is amended as follows:
C279: The additional of the clause 6.3.3 6.3.3 The contractor shall ensure that all shop drawings required for the works in terms of this Contract, all subcontracts and/or any principal agent’s instruction, are prepared and submitted timeously in accordance with the following procedure: Three prints of shop drawings of all fabricated work, working or setting out drawings, shop details and schedules shall be submitted to the principal agent or delegated agent for approval. Such work shall not be carried out until such approval has been given. Shop drawings shall be submitted to the principal agent for approval and the contractor is to allow the principal agent a reasonable check period (minimum two weeks) from the date of receipt of shop drawings, before returning the drawings to the contractor in accordance with the works programme. All submissions shall be prepared in accordance with the contract drawings and specifications and/or any principal agent’s instructions and any deviation shall be specifically highlighted in writing, with a detailed explanation of the reason for such deviation, together with any cost and/or time implications. Delays in approval of shop drawings due to non-compliance with drawings, specifications and/or principal agent’s instructions, shall not constitute ground for any claims for delay, extension of time and the like. When the principal agent advises that shop drawings have been approved, such drawings shall immediately be submitted to the principal agent so that the principal agent’s stamp of approval may be appended thereto. Thereafter, four prints of the approved shop drawings, setting out drawings and schedules shall be furnished to the principal agent. As many prints of the approved shop drawings and schedules as required, shall also be furnished to the works. No work shall be performed in accordance with drawings and/or catalogues not stamped with the principal agent’s approval. The contractor, sub-contractor or supplier, as the case may be, shall be responsible for ensuring that all dimensions affecting shop drawings conform to the dimensions of built work. The principal agent’s approval of shop drawings is limited to checking conformity with specification and shall not relieve the contractor, subcontractor or supplier of his responsibility for design, erection or installation fit, nor does it vary his contractual or delictual obligations and liabilities. Should the contractor, subcontractor or supplier be of the opinion that corrections to shop drawings made by the principal agent constitute a change to the scope of work, then he shall immediately advise the principal agent in writing of this, together with the cost and/or programme implications thereof, in order to obtain the principal agent’s directive.
C281: The addition of clause 6.3.4 6.3.4 "The contractor shall present a complete schedule showing the sequence of submission of shop drawings, including submission dates for all trades and the scheduled dates for approval of all drawings. This schedule shall take into account a two week check period from the date of the receipt of all shop drawings and/or catalogue data All submissions shall be on dates as indicated in the above schedule and sufficiently in advance to permit the contractor and subcontractors to meet fabrication deadlines. No claim for extensions to the construction period will be granted to the contractor by reason of his failure in this respect"
A283: 22 | C283: CLAUSE 6.4 COMPLIANCE WITH MANUFACTURERS' INSTRUCTION | E283: Item | F283: 1.00 | H283: =ROUND(F283*G283,2) -> 0.00
C285: 7.0 DEPOSITS AND FEES
A287: 23 | C287: CLAUSE 7.1 DEPOSIT AND FEES | E287: Item | F287: 1.00 | H287: =ROUND(F287*G287,2) -> 0.00
C289: 8.0 TEMPORARY SERVICES
A291: 24 | C291: CLAUSE 8.1 WATER | E291: Item | F291: 1.00 | H291: =ROUND(F291*G291,2) -> 0.00
A293: 25 | C293: CLAUSE 8.2 ELECTRICITY | E293: Item | F293: 1.00 | H293: =ROUND(F293*G293,2) -> 0.00
A295: 26 | C295: CLAUSE 8.3 ABLUTIONS AND WELFARE FACILITIES | E295: Item | F295: 1.00 | H295: =ROUND(F295*G295,2) -> 0.00
A297: 27 | C297: CLAUSE 8.4 COMMUNICATION FACILITIES | E297: Item | F297: 1.00 | H297: =ROUND(F297*G297,2) -> 0.00
C299: Clause 8 is amended by the addition of the following clause: 8.5 "The contractor shall agree the location of all temporary services with the principal agent before installation and on completion remove the same and make good [8.1, 8.2, 8.3, 8.4]"
C301: 9.0 PRIME COST AMOUNTS
A303: 28 | C303: CLAUSE 9.1 RESPONSIBILITY FOR PRIME COST AMOUNTS | E303: Item | F303: 1.00 | H303: =ROUND(F303*G303,2) -> 0.00
C305: 10.0 ATTENDANCE ON SUBCONTRACTORS
A307: 29 | C307: CLAUSE 10.1 GENERAL ATTENDANCE | E307: Item | F307: 1.00 | H307: =ROUND(F307*G307,2) -> 0.00
C309: Clause 10.1 shall be amended by the addition of the following: The contractor shall allow all nominated and selected subcontractors reasonable usage of hoisting facilities whilst they remain erected. The provision and erection of scaffolding by the contractor as required for the execution of works, shall be done in the best interests of the project, whereby nominated and selected subcontractors shall be afforded the opportunity to use the erected scaffolding by prior agreement with the contractor.
A311: 30 | C311: CLAUSE 10.2 SPECIAL ATTENDANCE | E311: Item | F311: 1.00 | H311: =ROUND(F311*G311,2) -> 0.00
C313: 11.0 GENERAL
A315: 31 | C315: CLAUSE 11.1 PROTECTION OF THE WORKS | E315: Item | F315: 1.00 | H315: =ROUND(F315*G315,2) -> 0.00
A317: 32 | C317: CLAUSE 11.2 PROTECTION / ISOLATION OF EXISTING WORKS AND WORK OCCUPIED IN SECTIONS | E317: Item | F317: 1.00 | H317: =ROUND(F317*G317,2) -> 0.00
A319: 33 | C319: CLAUSE 11.3 SECURITY OF THE WORKS | E319: Item | F319: 1.00 | H319: =ROUND(F319*G319,2) -> 0.00
A321: 34 | C321: CLAUSE 11.4 NOTICE BEFORE COVERING WORK | E321: Item | F321: 1.00 | H321: =ROUND(F321*G321,2) -> 0.00
A323: 35 | C323: CLAUSE 11.5 DISTURBANCE | E323: Item | F323: 1.00 | H323: =ROUND(F323*G323,2) -> 0.00
C325: Clause 11.5 is amplified by the addition of the following at the end of this clause. All work is to be carried out in such a manner as to cause no unacceptable or unreasonable dust, noise, vibrations, nuisance, inconvenience, annoyance and the like to the public, others, other properties and traffic in so far as they exceed the permissible limitations set by government legislation or the local authority. Any delays, stoppages and the like arising from or in order to comply with the above will not constitute grounds for an adjustment to the construction period or contract value whatsoever"
C327: Clause 11.6 is amended by the addition of the following at the end of this clause. "The contractor shall be responsible for and take all precautions in controlling by whatever means necessary all forms of pollution during the construction period due inter alia to noise, artificial light, wind-blown sand, dust, deposits or mud, etc The contractor is to ensure that all roads which border the site and used by the contractor during the execution of the works are kept clean and free of any dirt or debris caused by the execution of the works"
A329: 36 | C329: CLAUSE 11.6 ENVIRONMENTAL DISTURBANCE | E329: Item | F329: 1.00 | H329: =ROUND(F329*G329,2) -> 0.00
A331: 37 | C331: CLAUSE 11.7 WORKS CLEANING AND CLEARING | E331: Item | F331: 1.00 | H331: =ROUND(F331*G331,2) -> 0.00
A333: 38 | C333: CLAUSE 11.8 VERMIN | E333: Item | F333: 1.00 | H333: =ROUND(F333*G333,2) -> 0.00
A335: 39 | C335: CLAUSE 11.9 OVERHAND WORK | E335: Item | F335: 1.00 | H335: =ROUND(F335*G335,2) -> 0.00
A337: 40 | C337: CLAUSE 11.10 TENANT INSTALLATIONS | E337: Item | F337: 1.00 | H337: =ROUND(F337*G337,2) -> 0.00
A339: 41 | C339: CLAUSE 11.11 ADVERTISING | E339: Item | F339: 1.00 | H339: =ROUND(F339*G339,2) -> 0.00
C341: PART C - ADDITIONAL PRELIMINARIES
C343: The following clauses are additional to, or augment the clauses contained in Part A and B.
C345: 1.0 THE SITE
A347: 1 | C347: CLAUSE 1.1 UNAUTHORISED PERSONS ON SITE | E347: Item | F347: 1.00 | H347: =ROUND(F347*G347,2) -> 0.00
C349: The contractor shall at all times strictly exclude all unauthorized persons from the works. No workmen are to be allowed under any circumstances to sleep or deposit any personal effects on the premises. The contractor must provide any necessary independent shelters or sheds required for any workmen or watchmen left on the site.Furthermore, the contractor shall take all measures necessary to ensure that no unauthorised workmen are allowed into the building at any time without the specific permission of the principal agent.
A351: 2 | C351: CLAUSE 1.2 ACCESS TO SITE | E351: Item | F351: 1.00 | H351: =ROUND(F351*G351,2) -> 0.00
C353: Access to the site shall be restricted to enter and exit through one point only or as directed by the principal agent.
A355: 3 | C355: CLAUSE 1.3 MAINTENANCE OF ROADS AND SERVICES | E355: Item | F355: 1.00 | H355: =ROUND(F355*G355,2) -> 0.00
C357: The contractor shall keep the approaches to the site clear of mud, other debris and the like caused by the contractor or any subcontractors.
A359: 4 | C359: CLAUSE 1.4 USE OF BORROW PITS AND DUMP SITES | E359: Item | F359: 1.00 | H359: =ROUND(F359*G359,2) -> 0.00
C361: All borrow pits and dump site areas proposed to be used by the contractor shall be subject to prior approval by the principal agent. The contractor shall also be restricted in respect of the manner in which the borrow pits and dump sites will be used and shall be liable to work within the constraints reasonably set by the principal agent. All green star principal are to be strictly adhered to.
A363: 5 | C363: CLAUSE 1.5 SURVEY BEACONS | E363: Item | F363: 1.00 | H363: =ROUND(F363*G363,2) -> 0.00
C365: The contractor’s attention is drawn to the provisions of Sections 35 and 36 of the Land Survey Act (Act 9 of 1927) in terms of which he will be responsible for the safety of any survey beacons and bench marks and of any plot boundary pegs encountered on the site as well as for all costs incurred in the replacement of moved or damaged survey beacons and bench marks or plot boundary pegs by a Registered Land Surveyor.
C367: 2.0 FINANCIAL ASPECTS
A369: 6 | C369: CLAUSE 2.1 FIXED PRICE TENDERS | E369: Item | F369: 1.00 | H369: =ROUND(F369*G369,2) -> 0.00
C371: Tenderers shall, in respect of general builder's work (i.e. excluding budgetary allowances and provisional sums allowed for subcontract works), offer a fixed price option in lieu of adjustment in terms of the CPAP in which case, all variations in costs, inter alia costs of labour and materials, taxes (excluding VAT), currency fluctuations, exchange rates, transport charges, plant, overheads, preliminaries, etc., after submission of the offer, shall be to the contractor’s account. Rates shall remain fixed, irrespective of any increase or decrease in the final value of the works and shall remain so for the duration of the contract and also for any extended contract period that may be granted by the principal agent.
A373: 7 | C373: CLAUSE 2.2 PRICING OF PRELIMINARIES | E373: Item | F373: 1.00 | H373: =ROUND(F373*G373,2) -> 0.00
C375: These bills of quantities have been formulated in the conventional manner, whereby the preliminaries have been included as a separate section, in order to enable tenderers to price their site establishment costs, site management, etc. In pricing the preliminaries, tenderers are required to price the relevant items individually, as a single lump sum preliminaries amount will not be accepted. In the event that a tenderer elects not to price the preliminaries section as contained within these bills of quantities, then it will be deemed that all relevant preliminaries costs have been included within the rates as tendered within the measured bills of quantities. Adjustment of the preliminaries will, in this instance, only be by way of remeasured final quantities applied to tendered rates. Tenderers acknowledge that by pricing the preliminaries in this way, they will forfeit any claim for the independent adjustment of preliminaries costs arising out of an extension of the construction period granted in terms of Clause A23.0.
A377: 8 | C377: CLAUSE 2.3 PRICING OF BILLS | E377: Item | F377: 1.00 | H377: =ROUND(F377*G377,2) -> 0.00
C379: Tenderers are to allow opposite each item for all costs in connection therewith. All prices to include, unless otherwise stated, for all materials, fabrication, conveyance and delivery, unloading, storing, unpacking, hoisting, labour, setting, fitting and fixing in position, cutting and waste (except where to be measured in accordance with the Standard System of Measurement) patterns, models and templates, plant, temporary works, returning of packing, duties, taxes, imposts, establishment charges, overheads, profit and all other obligations arising out of the agreement.
C381: Items left unpriced will be deemed to be covered in prices against other items throughout these bills of quantities and no claim for any extras arising out of the tenderer's omission to price any item will be entertained. Prices for all plant, temporary works, services and other items provided shall include for the supply, maintenance, operating cost and subsequent removal and making good as necessary. The contractor shall execute work during “overtime” hours as necessary in order to complete the project within the agreed construction period and shall provide such resources and work such overtime hours as necessary. Costs for the execution of this work under these conditions shall be included within the contract sum.
A383: 9 | C383: CLAUSE 2.4 NATURE OF PROJECT IN RELATION TO PRICING | E383: Item | F383: 1.00 | H383: =ROUND(F383*G383,2) -> 0.00
C385: Tenderers are advised that the nature of this contract is such that the detail design will evolve in parallel with construction. The Tenderer acknowledges that he is aware that the project detail design and related planning and production of drawings are in an embryonic stage and that the appointments of major selected/nominated subcontractors have yet to take place and that notwithstanding this, the rates and prices contained herein, shall remain of full force and effect.
A387: 10 | C387: CLAUSE 2.5 COSTS OF CLAIMS | E387: Item | F387: 1.00 | H387: =ROUND(F387*G387,2) -> 0.00
C389: All costs incurred by the contractor in the preparation of claims to the satisfaction of the principal agent and/or quantity surveyor shall be borne by the contractor. In order to assist the principal agent in adjudicating a claim in terms of clause A26.6, the contractor shall provide a written opinion on all claims, including those submitted by selected/nominated subcontractors, pertaining to reduced time available for execution of the relevant work, out-of-sequence working, lack of access or claims of a similar nature.
C391: 3.0 INSURANCES
A393: 11 | C393: CLAUSE 3.1 SATISFACTION OF CONTRACTOR AS TO SCOPE OF INSURANCES | E393: Item | F393: 1.00 | H393: =ROUND(F393*G393,2) -> 0.00
C395: All insurances to be effected by the Contractor.
C397: Where the contractor is responsible for the appointment of sub-contractors, then the contractor shall: i) ensure that potential and appointed subcontractors are aware of the whole content of Clause A10.0 ii) ensure the compliance of subcontractor with this Clause where applicable.
A399: 12 | C399: CLAUSE 3.2 CLAIMS UNDER INSURANCE ARRANGED BY THE EMPLOYER | E399: Item | F399: 1.00 | H399: =ROUND(F399*G399,2) -> 0.00
... 1151 more rows
